fUSD/lending_fUSD_20260416
["ID","MTS","AMOUNT","RATE_DAILY","PERIOD"]
[420586176,1776274665356,-200.283592,0.00019178,2]
[420586177,1776274665367,-200.283592,0.00019178,2]
[420586178,1776274665377,-200.283592,0.00019178,2]
[420586179,1776274665388,-200.283592,0.00019178,2]
[420586180,1776274665398,-200.283592,0.00019178,2]
[420586181,1776274665411,-200.283592,0.00019178,2]
[420586182,1776274665420,-200.283592,0.00019178,2]
[420586183,1776274665430,-200.283592,0.00019178,2]
[420586184,1776274665440,-200.283592,0.00019178,2]
[420586185,1776274665450,-200.283592,0.00019178,2]
[420586186,1776274665463,-200.283592,0.00019178,2]
[420586187,1776274665473,-200.283592,0.00019178,2]
[420586188,1776274665483,-200.283592,0.00019178,2]
[420586189,1776274665492,-200.283592,0.00019178,2]
[420586190,1776274665505,-200.283592,0.00019178,2]
[420586191,1776274665514,-200.283592,0.00019178,2]
[420586192,1776274665524,-200.283592,0.00019178,2]
[420586193,1776274665534,-200.283592,0.00019178,2]
[420586194,1776274665544,-200.283602,0.00019178,2]
[420586195,1776274665556,-150.0,0.00019178,2]
[420586196,1776274665567,-150.0,0.00019178,2]
[420586197,1776274665577,-31426.87298016,0.0001918,2]
[420586198,1776274665587,-500.0,0.00019437,30]
[420586199,1776274665599,-216.3342914,0.00019437,30]
[420586200,1776274665609,-2150.54787922,0.00019486,7]
[420586201,1776274665618,-151.0,0.000195,5]
[420586202,1776274665628,-1492.23114589,0.00019561,7]
[420586203,1776274665640,-2000.0,0.000196,30]
[420586204,1776274665650,-508.0,0.00019657,7]
[420586205,1776274665660,-1073.2078,0.000197,2]
[420586206,1776274665671,-3379.89755924,0.00019702,2]
[420586207,1776274665682,-250.0,0.00019726,2]
[420586208,1776274665691,-250.0,0.00019726,2]
[420586209,1776274665701,-259.25750126,0.000199,2]
[420586210,1776274665711,-4971.97479049,0.000199,3]
[420586211,1776274665722,-2150.54787922,0.00019913,7]
[420586212,1776274665732,-28579.12005801,0.0001995,15]
[420586213,1776274666210,-190945.57528137,0.0001995,15]
[420586214,1776274666223,-7049.3824595,0.0002,2]
[420586215,1776274666235,-25808.90453102,0.0002,2]
[420586216,1776274666245,-3950.0,0.0002,2]
[420586217,1776274666255,-26657.24326703,0.0002,2]
[420586218,1776274666266,-133179.36151228,0.0002,2]
[420586219,1776274666277,-52092.71673625,0.0002,2]
[420586220,1776274666288,-13032.31794441,0.0002,2]
[420586221,1776274666298,-177.99349683,0.0002,2]
[420586222,1776274666310,-33153.00505475,0.0002,14]
[420586223,1776274666323,-5164.08254079,0.0002,14]
[420586224,1776274666333,-300.0,0.0002,3]
[420586225,1776274666343,-596.0,0.0002,2]
[420586226,1776274666353,-500.0,0.0002,2]
[420586227,1776274666362,-5000.0,0.0002,30]
[420586228,1776274666374,-1546.32114818,0.0002,2]
[420586229,1776274666384,-2464.68,0.0002,2]
[420586230,1776274666396,-1305.43833823,0.0002,2]
[420586231,1776274666406,-200.0,0.0002,2]
[420586232,1776274666417,-1053.81450812,0.0002,2]
[420586233,1776274666429,-1996.68064079,0.0002,2]
[420586234,1776274666457,-421.0,0.00013424,2]
[420586235,1776274666468,-891.12188584,0.0002,2]
[420586236,1776274666480,-152.0,0.0002,2]
[420586237,1776274666491,-165.792,0.0002,2]
[420586238,1776274666504,-1798.77611416,0.0002,2]
[420586239,1776274666532,-590.0917593,0.0002,2]
[420586240,1776274666555,-530.00010253,0.0002,2]
[420586241,1776274666569,-259.40146184,0.0002,2]
[420586242,1776274666642,-421.0,0.00013424,2]
[420586243,1776274666653,-258.9945,0.00013424,2]
[420586244,1776274666687,-162.0055,0.00013424,2]
[420586245,1776274666697,-421.0,0.00013424,2]
[420586246,1776274666709,-1556.31097153,0.0002,2]
[420586247,1776274666719,-4171.52804438,0.0002,120]
[420586248,1776274666729,-1709.74067993,0.0002,120]
[420586249,1776274666738,-4914.52185734,0.0002,120]
[420586250,1776274666748,-730.03958454,0.0002,120]
[420586251,1776274666759,-610.0,0.0002,120]
[420586252,1776274666770,-155.34513364,0.0002,120]
[420586253,1776274666780,-647.7273924,0.0002,14]
[420586254,1776274666791,-799.0,0.0002,2]
[420586255,1776274666803,-199.42,0.0002,20]
[420586256,1776274666813,-1483.00484443,0.0002,5]
[420586257,1776274666823,-5548.374164,0.0002,2]
[420586258,1776274666835,-308.77213248,0.0002,30]
[420586259,1776274666846,-192.86,0.0002,2]
[420586260,1776274666857,-192.86,0.0002,2]
[420586261,1776274666870,-192.86,0.0002,2]
[420586262,1776274666882,-192.86,0.0002,2]
[420586263,1776274666893,-150.0,0.0002,20]
[420586264,1776274666913,-200.0,0.0002,2]
[420586265,1776274666930,-825.0,0.0002,30]
[420586266,1776274666942,-5610.0,0.0002,2]
[420586267,1776274666961,-2046.0,0.0002,2]
[420586268,1776274666973,-338.67694719,0.00020013,7]
[420586269,1776274666986,-1051.0,0.0002005,2]
[420586270,1776274667006,-4125.0,0.0002005,2]
[420586271,1776274667018,-9999.99,0.00020145,2]
[420586272,1776274667030,-9999.99,0.00020145,2]
[420586273,1776274667050,-1622.53,0.00020145,2]
[420586274,1776274667061,-150.99,0.00020145,2]
[420586275,1776274667076,-4999.99,0.00020145,2]
[420586276,1776274667094,-299.99,0.00020145,7]
[420586277,1776274667107,-770.25,0.00020145,2]
[420586278,1776274667120,-7634.36274811,0.00020145,2]
[420586279,1776274667653,-262.16507998,0.00012716,2]
[420586280,1776274667738,-787.37692002,0.00012716,2]
[420586281,1776274667765,-421.0,0.00013424,2]
[420586282,1776274667829,-421.0,0.00013424,2]
[420586283,1776274667849,-155.28651857,0.00013424,2]
[420586284,1776274667875,-421.0,0.00013424,2]
[420586285,1776274667893,-421.0,0.00013424,2]
[420586286,1776274667927,-421.0,0.00013424,2]
[420586287,1776274667944,-421.0,0.00013424,2]
[420586288,1776274668011,-164.11863008,0.00013424,2]
[420586289,1776274668083,-421.0,0.00013424,2]
[420586290,1776274668120,-421.0,0.00013424,2]
[420586291,1776274668156,-421.0,0.00013424,2]
[420586292,1776274668196,-421.0,0.00013424,2]
[420586293,1776274668226,-157.14731396,0.00013424,2]
[420586294,1776274668239,-1047.0,0.00015716,2]
[420586295,1776274668272,-1047.0,0.00018716,2]
[420586296,1776274668283,-2365.62725189,0.00020145,2]
[420586297,1776274668305,-9999.99,0.00020145,2]
[420586298,1776274668320,-1012.08516298,0.00020145,2]
[420586299,1776274668336,-8987.90483702,0.00020145,2]
[420586300,1776274668356,-350.0,0.00020274,2]
[420586301,1776274668367,-350.0,0.00020274,2]
[420586302,1776274668378,-2150.54787922,0.00020339,14]
[420586303,1776274668408,-151.0,0.000205,5]
[420586304,1776274668418,-1273.1196597,0.000207,2]
[420586305,1776274668443,-21582.47626698,0.000207,2]
[420586306,1776274668467,-2150.54787922,0.00020766,14]
[420586307,1776274668478,-450.0,0.00020822,2]
[420586308,1776274668496,-450.0,0.00020822,2]
[420586309,1776274668506,-150.0,0.00020826,120]
[420586310,1776274668517,-186.27,0.00020837,30]
[420586311,1776274668526,-508.0,0.00020889,8]
[420586312,1776274668542,-267.17,0.00020951,2]
[420586313,1776274668569,-267.17,0.00020951,2]
[420586314,1776274668592,-20000.0,0.00021,2]
[420586315,1776274668602,-1203.21251272,0.00021,2]
[420586316,1776274668612,-198.58294256,0.00021,2]
[420586317,1776274668646,-3397.5909052,0.00021,7]
[420586318,1776274668656,-5000.0,0.00021,30]
[420586319,1776274668675,-1051.0,0.0002105,2]
[420586320,1776274668684,-4125.0,0.0002105,2]
[420586321,1776274668694,-1372.4859,0.000211,2]
[420586322,1776274668703,-2150.54787922,0.00021192,14]
[420586323,1776274668721,-604.57,0.00021243,66]
[420586324,1776274668730,-550.0,0.0002137,2]
[420586325,1776274668740,-550.0,0.0002137,2]
[420586326,1776274668751,-58051.57150533,0.000215,2]
[420586327,1776274668770,-224.05740441,0.000215,2]
[420586328,1776274668780,-151.0,0.000215,5]
[420586329,1776274668790,-2150.54787922,0.00021619,14]
[420586330,1776274668807,-2473.0,0.00021716,2]
[420586331,1776274668817,-338.67694719,0.00021769,14]
[420586332,1776274668826,-2430.0,0.0002189,2]
[420586333,1776274668837,-175.73684211,0.0002189,2]
[420586334,1776274668861,-700.13952717,0.0002189,2]
[420586335,1776274668871,-505.03026798,0.0002189,2]
[420586336,1776274668892,-800.95489836,0.0002189,2]
[420586337,1776274668902,-186.60399755,0.0002189,2]
[420586338,1776274668919,-179.38699776,0.0002189,2]
[420586339,1776274668928,-382.7,0.000219,2]
[420586340,1776274668938,-5000.0,0.00021918,2]
[420586341,1776274668947,-166.0,0.00021918,2]
[420586342,1776274668964,-172.0,0.00021918,2]
[420586343,1776274668983,-166.0,0.00021918,2]
[420586344,1776274668992,-166.0,0.00021918,2]
[420586345,1776274669009,-166.0,0.00021918,2]
[420586346,1776274669019,-650.0,0.00021918,2]
[420586347,1776274669029,-150.0,0.00021918,2]
[420586348,1776274669038,-2016.15796378,0.00022,2]
[420586349,1776274669056,-5000.0,0.00022,15]
[420586350,1776274669065,-362956.46407402,0.00022,4]
[420586351,1776274669077,-164.92,0.00022,2]
[420586352,1776274669100,-160.0,0.00022,2]
[420586353,1776274669110,-2150.54787922,0.00022046,14]
[420586354,1776274669118,-1051.0,0.0002205,2]
[420586355,1776274669130,-4125.0,0.0002205,2]
[420586356,1776274669150,-164.8238,0.0002205,2]
[420586357,1776274669161,-150.0,0.00022097,120]
[420586358,1776274669171,-498.88226467,0.000221,2]
[420586359,1776274669187,-242.44556535,0.0002211,2]
[420586360,1776274669199,-508.0,0.0002212,9]
[420586361,1776274669209,-825.0,0.00022294,30]
[420586362,1776274669231,-250.0,0.00022466,2]
[420586363,1776274669241,-750.0,0.00022466,2]
[420586364,1776274669253,-750.0,0.00022466,2]
[420586365,1776274669273,-2150.54787922,0.00022472,14]
[420586366,1776274669293,-35828.92435743,0.000225,2]
[420586367,1776274669305,-2900.0,0.000225,15]
[420586368,1776274669323,-292.46596771,0.000225,5]
[420586369,1776274669337,-1755.2217,0.000225,2]
[420586370,1776274669365,-3638.23236667,0.000226,2]
[420586371,1776274669375,-162.0,0.0002262,2]
[420586372,1776274669388,-528.07307654,0.0002271,2]
[420586373,1776274669414,-500.0,0.0002272,2]
[420586374,1776274669424,-2000.0,0.0002272,2]
[420586375,1776274669434,-302.18412229,0.00022792,14]
[420586376,1776274669453,-2150.54787922,0.00022899,30]
[420586377,1776274669475,-382.7,0.000229,2]
[420586378,1776274669485,-310634.0401328,0.00023,2]
[420586379,1776274669494,-1000.0,0.00023,14]
[420586380,1776274669504,-500.03171203,0.00023,60]
[420586381,1776274669527,-182.0308231,0.00023,3]
[420586382,1776274669537,-1007.1858618,0.00023,2]
[420586383,1776274669546,-850.0,0.00023014,2]
[420586384,1776274669567,-350.0,0.00023014,2]
[420586385,1776274669595,-1064.0,0.0002305,2]
[420586386,1776274669605,-4125.37422725,0.0002305,2]
[420586387,1776274669619,-4018.34191015,0.0002314,2]
[420586388,1776274669636,-1191.52725147,0.000232,2]
[420586389,1776274669645,-2150.54787922,0.00023325,30]
[420586390,1776274669657,-508.0,0.00023352,10]
[420586391,1776274669667,-188.14,0.00023368,120]
[420586392,1776274669683,-338.67694719,0.00023526,30]
[420586393,1776274669692,-151.0,0.0002354,2]
[420586394,1776274669716,-950.0,0.00023562,2]
[420586395,1776274669727,-450.0,0.00023562,2]
[420586396,1776274669752,-2150.54787922,0.00023752,30]
[420586397,1776274669762,-382.7,0.000239,2]
[420586398,1776274669771,-2244.6883,0.000239,2]
[420586399,1776274669800,-3600.0,0.00024,2]
[420586400,1776274669810,-10531.64991488,0.00024,14]
[420586401,1776274669820,-1031.87825891,0.00024,2]
[420586402,1776274669835,-1247.58887748,0.00024,2]
[420586403,1776274669867,-526.0,0.00024,5]
[420586404,1776274669891,-494.9951623,0.00024,61]
[420586405,1776274669902,-1050.0,0.0002411,2]
[420586406,1776274669912,-550.0,0.0002411,2]
[420586407,1776274669930,-2150.54787922,0.00024178,30]
[420586408,1776274669942,-3734.09907368,0.0002421,2]
[420586409,1776274669955,-227.72046791,0.0002444,120]
[420586410,1776274669971,-3015.0,0.00024463,7]
[420586411,1776274669980,-167.09922491,0.0002455,15]
[420586412,1776274670013,-508.0,0.00024583,11]
[420586413,1776274670024,-825.0,0.00024588,60]
[420586414,1776274670060,-2150.54787922,0.00024605,30]
[420586415,1776274670093,-1738.75,0.0002463,2]
[420586416,1776274670201,-1738.75,0.0002463,2]
[420586417,1776274670372,-2329.0,0.0002463,2]
[420586418,1776274670567,-2329.0,0.0002463,2]
[420586419,1776274670780,-1788.0,0.0002463,2]
[420586420,1776274670994,-1788.0,0.0002463,2]
[420586421,1776274671228,-1363.99999999,0.0002463,2]
[420586422,1776274671435,-939.5839018,0.0002463,2]
[420586423,1776274671667,-479.72338521,0.0002463,2]
[420586424,1776274671822,-216.55,0.0002463,2]
[420586425,1776274671893,-223.25,0.0002463,2]
[420586426,1776274671924,-241.55,0.0002463,2]
[420586427,1776274671950,-172.9,0.0002463,2]
[420586428,1776274671983,-174.4,0.0002463,2]
[420586429,1776274672097,-227.3,0.0002463,2]
[420586431,1776274672190,-229.5,0.0002463,2]
[420586432,1776274672238,-177.25,0.0002463,2]
[420586433,1776274672312,-193.95,0.0002463,2]
[420586434,1776274672452,-201.75,0.0002463,2]
[420586435,1776274672481,-155.3,0.0002463,2]
[420586436,1776274672550,-174.35,0.0002463,2]
[420586437,1776274672599,-245.9,0.0002463,2]
[420586438,1776274672648,-166.4,0.0002463,2]
[420586439,1776274672706,-150.65,0.0002463,2]
[420586440,1776274672798,-234.9,0.0002463,2]
[420586441,1776274672850,-239.0,0.0002463,2]
[420586442,1776274672889,-175.15,0.0002463,2]
[420586443,1776274672945,-212.45,0.0002463,2]
[420586444,1776274673057,-195.4,0.0002463,2]
[420586445,1776274673150,-175.15,0.0002463,2]
[420586446,1776274673199,-230.6,0.0002463,2]
[420586447,1776274673295,-189.45,0.0002463,2]
[420586448,1776274673348,-199.05,0.0002463,2]
[420586449,1776274673386,-198.77468663,0.0002463,2]
[420586450,1776274673459,-176.05,0.0002463,2]
[420586451,1776274673489,-161.29221797,0.0002463,2]
[420586452,1776274673508,-309.27453902,0.0002463,30]
[420586453,1776274673531,-250.86,0.0002464,120]
[420586454,1776274673552,-169.93700057,0.0002465,2]
[420586455,1776274673575,-319.97183316,0.0002465,120]
[420586456,1776274673629,-1048.57582127,0.00024658,2]
[420586457,1776274673652,-650.0,0.00024658,2]
[420586458,1776274673674,-1000.0,0.00024658,2]
[420586459,1776274673691,-168.98423223,0.00024658,30]
[420586460,1776274673713,-158.55,0.00024658,2]
[420586461,1776274673724,-2473.0,0.00024716,2]
[420586462,1776274673748,-1200.0,0.0002475,2]
[420586463,1776274673763,-600.0,0.0002475,2]
[420586464,1776274673776,-600.0,0.0002475,7]
[420586465,1776274673799,-1950.0,0.0002475,2]
[420586466,1776274673845,-450.0,0.0002475,2]
[420586467,1776274673870,-900.0,0.0002475,2]
[420586468,1776274673887,-600.0,0.0002475,2]
[420586469,1776274673907,-150.0,0.0002475,7]
[420586470,1776274673930,-382.7,0.000249,2]
[420586471,1776274673945,-101677.93467814,0.000249,3]
[420586472,1776274674620,-500.0,0.00010499,2]
[420586473,1776274674636,-433.95222071,0.00010499,2]
[420586474,1776274674671,-233.38141998,0.00010959,2]
[420586475,1776274674682,-421.0,0.00013424,2]
[420586476,1776274674701,-421.0,0.00013424,2]
[420586477,1776274674719,-373.82589415,0.00013424,2]
[420586478,1776274674786,-47.17410585,0.00013424,2]
[420586479,1776274674814,-2500.0,0.00016438,2]
[420586480,1776274674827,-2500.0,0.00016438,2]
[420586481,1776274674860,-2500.0,0.00016438,2]
[420586482,1776274674875,-2500.0,0.00016438,2]
[420586483,1776274674890,-2500.0,0.00016438,2]
[420586484,1776274674913,-2500.0,0.00016438,2]
[420586485,1776274674923,-2500.0,0.00016438,2]
[420586486,1776274674973,-2500.0,0.00016438,2]
[420586487,1776274674994,-2500.0,0.00016438,2]
[420586488,1776274675047,-2500.0,0.00016438,2]
[420586489,1776274675057,-250.0,0.00019178,2]
[420586490,1776274675085,-250.0,0.00019178,2]
[420586491,1776274675098,-250.0,0.00019178,2]
[420586492,1776274675119,-257.26874947,0.00019178,2]
[420586493,1776274675140,-1047.0,0.00021716,2]
[420586494,1776274675181,-1047.0,0.00024716,2]
[420586495,1776274675201,-41090.09919625,0.000249,3]
[420586496,1776274675223,-458544.85180261,0.000249,3]
[420586497,1776274675235,-75805.94534979,0.00024986,2]
[420586498,1776274675269,-2500.0,0.00016438,2]
[420586499,1776274675284,-3864.3460579,0.00024986,2]
[420586500,1776274675298,-3635.4465271,0.00025,2]
[420586501,1776274675317,-836.38893955,0.00025,2]
[420586502,1776274675358,-612.73558738,0.00025,2]
[420586503,1776274675373,-2100.35165335,0.00025,2]
[420586504,1776274675396,-3020.41288578,0.00025,2]
[420586505,1776274677425,150.0,8.7e-05,2]
[420586507,1776274690055,279.44,8.505e-05,2]
[420586509,1776274699664,150.0,8.7e-05,2]
[420586510,1776274700324,300.0,8.699e-05,2]
[420586512,1776274701633,161.69,8.634e-05,2]
[420586524,1776274722054,1905.997697,8.478e-05,2]
[420586525,1776274722107,10000.0,8.478e-05,2]
[420586526,1776274722167,10000.0,8.478e-05,2]
[420586527,1776274722252,9622.092303,8.478e-05,2]
[420586530,1776274726500,377.907697,8.468e-05,2]
[420586531,1776274726526,1122.092303,8.468e-05,2]
[420586532,1776274732590,1779.31,8.449e-05,2]
[420586533,1776274735598,250.0,7.821e-05,2]
[420586534,1776274735634,250.0,7.11e-05,2]
[420586535,1776274735678,313.41770673,7.723e-05,2]
[420586536,1776274751608,300.0,8.477e-05,2]
[420586537,1776274751932,1200.0,8.467e-05,2]
[420586538,1776274752593,193.0,7.821e-05,2]
[420586539,1776274753239,1009.8,8.419e-05,2]
[420586540,1776274754770,150.0,8.4e-05,2]
[420586541,1776274756250,250.0,8.664e-05,2]
[420586542,1776274764680,300.0,8.477e-05,2]
[420586543,1776274764713,150.0,8.708e-05,2]
[420586544,1776274764980,193.0,7.821e-05,2]
[420586545,1776274765058,183.68564111,7.11e-05,2]
[420586556,1776274769204,150.0,8.4e-05,2]
[420586569,1776274789300,150.0,8.4e-05,2]
[420586571,1776274799803,300.0,8.476e-05,2]
[420586573,1776274808453,150.0,8.4e-05,2]
[420586574,1776274812481,250.0,7.821e-05,2]
[420586575,1776274812560,250.0,7.466e-05,2]
[420586576,1776274812598,250.0,8.043e-05,2]
[420586577,1776274813210,250.32029699,8.564e-05,2]
[420586609,1776275010984,1200.0,0.000165,30]
[420586745,1776275435003,-2625.23758415,8.846e-05,2]
[420586749,1776275438737,-1188.64264585,8.846e-05,2]
[420586750,1776275438797,-1200.0,8.891e-05,2]
[420586751,1776275438875,-218.17533415,8.892e-05,2]
[420586799,1776275440104,-4781.82466585,8.892e-05,2]
[420586800,1776275440126,-4758.39418891,8.892e-05,2]
[420586801,1776275440143,-300.0,8.909e-05,2]
[420586802,1776275440167,-300.0,8.909e-05,2]
[420586803,1776275440187,-1200.0,8.91e-05,2]
[420586804,1776275440214,-3447.81374144,8.911e-05,2]
[420586805,1776275440231,-300.0,8.914e-05,2]
[420586806,1776275440258,-500.0,8.915e-05,2]
[420586807,1776275440278,-250.0,8.915e-05,2]
[420586808,1776275440302,-254.24,8.971e-05,2]
[420586809,1776275440322,-279.44,8.977e-05,2]
[420586810,1776275440346,-279.44,9.449e-05,2]
[420586811,1776275440370,-373.13604197,9.515e-05,2]
[420586812,1776275440387,-194.8915,9.682e-05,2]
[420586813,1776275440408,-5000.0,9.756e-05,2]
[420586814,1776275440420,-545.96,9.757e-05,2]
[420586815,1776275440432,-250.0,9.757e-05,2]
[420586816,1776275440449,-1680.0,9.78e-05,2]
[420586817,1776275440458,-300.0,9.8e-05,2]
[420586818,1776275440474,-420.0,9.8e-05,2]
[420586819,1776275440491,-1680.0,9.801e-05,2]
[420586820,1776275440500,-420.0,9.805e-05,2]
[420586821,1776275440514,-250.0,9.806e-05,2]
[420586822,1776275440525,-150.0,9.9e-05,2]
[420586823,1776275440541,-279.44,9.922e-05,2]
[420586824,1776275440550,-671.3784,9.973e-05,2]
[420586825,1776275440561,-150.0,9.999e-05,2]
[420586826,1776275440571,-681.71,0.0001,2]
[420586827,1776275440583,-151.0,0.0001,2]
[420586828,1776275440594,-151.0,0.0001,2]
[420586829,1776275440606,-151.0,0.0001,2]
[420586830,1776275440615,-151.0,0.0001,2]
[420586831,1776275440625,-151.0,0.0001,2]
[420586832,1776275440634,-151.0,0.0001,2]
[420586833,1776275440652,-65.07300976,0.0001,2]
[420586834,1776275440665,-85.92699024,0.0001,2]
[420586835,1776275440675,-151.0,0.0001,2]
[420586836,1776275440690,-151.0,0.0001,2]
[420586837,1776275440706,-151.0,0.0001,2]
[420586838,1776275440716,-151.0,0.0001,2]
[420586839,1776275440732,-151.0,0.0001,2]
[420586840,1776275440750,-151.0,0.0001,2]
[420586841,1776275440763,-53.26789328,0.0001,2]
[420586844,1776275441729,-97.73210672,0.0001,2]
[420586845,1776275441743,-151.0,0.0001,2]
[420586846,1776275441756,-151.0,0.0001,2]
[420586847,1776275441766,-123.60477343,0.0001,2]
[420586854,1776275443404,-27.39522657,0.0001,2]
[420586855,1776275443415,-151.0,0.0001,2]
[420586856,1776275443425,-151.0,0.0001,2]
[420586857,1776275443434,-151.0,0.0001,2]
[420586858,1776275443444,-248.76637279,0.0001,2]
[420586859,1776275443454,-500.0,0.0001,2]
[420586860,1776275443463,-159.39184945,0.0001,2]
[420586861,1776275443473,-159.39184945,0.0001,2]
[420586862,1776275443483,-159.39184945,0.0001,2]
[420586863,1776275443493,-500.0,0.00010111,2]
[420586864,1776275443502,-1047.52861084,0.00010273,2]
[420586865,1776275443512,-500.0,0.00010274,2]
[420586866,1776275443521,-500.0,0.00010274,2]
[420586867,1776275443530,-681.71,0.00010274,2]
[420586868,1776275443540,-115201.09,0.00010334,2]
[420586869,1776275443549,-282.21740561,0.00010373,2]
[420586870,1776275443559,-500.0,0.00010373,2]
[420586871,1776275443568,-500.0,0.00010373,2]
[420586872,1776275443577,-500.0,0.00010373,2]
[420586873,1776275443587,-500.0,0.00010373,2]
[420586874,1776275443603,-500.0,0.00010373,2]
[420586875,1776275443613,-500.0,0.00010373,2]
[420586876,1776275443622,-279.44,0.00010394,2]
[420586877,1776275443632,-525.1414,0.00010399,2]
[420586878,1776275443641,-167.91144294,0.000104,2]
[420586879,1776275443654,-200.0,0.00010464,2]
[420586880,1776275443669,-301.96489864,0.00010465,2]
[420586881,1776275443680,-646.19892884,0.00010473,2]
[420586882,1776275443690,-500.0,0.00010473,2]
[420586883,1776275443700,-13465.1652,0.000105,2]
[420586884,1776275443710,-2019.2583,0.000105,2]
[420586885,1776275443720,-500.0,0.00010548,2]
[420586886,1776275443729,-681.71,0.00010548,2]
[420586887,1776275443738,-166.61,0.00010741,2]
[420586889,1776275443748,-2351.0,0.00010758,2]
[420586890,1776275443758,-480.0,0.0001078,2]
[420586891,1776275443767,-587.0,0.00010786,2]
[420586893,1776275443777,-151.0,0.00010808,2]
[420586894,1776275443786,-500.0,0.00010822,2]
[420586895,1776275443796,-681.71,0.00010822,2]
[420586896,1776275443806,-500.0,0.00010921,2]
[420586897,1776275443816,-1000.0,0.00010921,2]
[420586899,1776275443827,-977.50429217,0.00010921,2]
[420586900,1776275443838,-500.53624514,0.00010921,2]
[420586901,1776275443848,-255.0,0.00010999,2]
[420586902,1776275443858,-190.83030843,0.00011096,2]
[420586903,1776275443868,-681.71,0.00011096,2]
[420586904,1776275443878,-532.0,0.0001115,5]
[420586905,1776275443888,-191.2725,0.000112,2]
[420586906,1776275443897,-157.64,0.00011226,2]
[420586907,1776275443908,-164.12,0.00011226,2]
[420586908,1776275443918,-166.61,0.00011332,2]
[420586909,1776275443929,-681.73461589,0.0001137,2]
[420586910,1776275443938,-1000.0,0.00011468,2]
[420586911,1776275444395,-600.0,0.00011558,2]
[420586912,1776275444417,-2000.0,0.00011638,2]
[420586913,1776275444427,-1600.0,0.00011663,2]
[420586914,1776275444437,-150.0,0.00011756,2]
[420586915,1776275444446,-175.68,0.00011777,2]
[420586916,1776275444461,-3292.0,0.00011834,2]
[420586917,1776275444471,-823.0,0.00011865,2]
[420586918,1776275444482,-167.91144294,0.000119,2]
[420586919,1776275444492,-166.61,0.00011923,2]
[420586920,1776275444509,-433.0,0.00012099,2]
[420586921,1776275444521,-243.9012,0.000125,2]
[420586922,1776275444531,-166.61,0.00012514,2]
[420586923,1776275444545,-1000.0,0.00012616,2]
[420586924,1776275444562,-250.0,0.00013,2]
[420586925,1776275444571,-4609.0,0.00013017,2]
[420586926,1776275444582,-1152.0,0.00013051,2]
[420586927,1776275444609,-500.0,0.00013061,2]
[420586928,1776275444623,-2000.0,0.00013092,2]
[420586929,1776275444656,-1600.0,0.00013121,2]
[420586930,1776275444667,-2545.05639864,0.00013218,2]
[420586931,1776275444705,-736.0,0.00013309,2]
[420586932,1776275444723,-167.91144294,0.000134,2]
[420586933,1776275444755,-216.558274,0.00013425,2]
[420586934,1776275444792,-7925.13941505,0.00013597,2]
[420586935,1776275444802,-17704.21200609,0.00013598,2]
[420586936,1776275444838,-65940.8334,0.00013598,2]
[420586937,1776275444850,-1000.0,0.00013609,2]
[420586938,1776275444881,-150.0,0.0001366,2]
[420586939,1776275444891,-150.0,0.0001366,2]
[420586940,1776275444917,-150.17267046,0.0001366,2]
[420586941,1776275444934,-150.0,0.0001366,2]
[420586942,1776275444960,-150.0,0.0001366,2]
[420586943,1776275444978,-150.00000001,0.0001366,2]